Workbook

Sheet Input
A1: Punching Shear Check & Design (ACI 318-08 ) (By Nima Salary)
L2: Units | M2: kg-cm
A4: Col. ID | B4: Vu | C4: Mux(2) | D4: Muy(3) | E4: Type | F4: Col. Dim. (cm) | H4: Ratio | I4: check
F5: C1 | G5: C2
A6: 1 | B6: 29792.13 | C6: 30719.57 | D6: 597936 | E6: 3 | F6: 35 | G6: 35 | H6: =IF(E6=1,Calculator!L3,IF(E6=2,Calculator!L4,Calculator!L5)) -> 1.448794653 | I6: =IF(H6<=1,"Ok","Not Ok") -> Not Ok
A8: f'c | B8: 210 | C8: Kgf.cm2 | E8: Type | F8: Location
A9: H | B9: 50 | C9: cm | E9: 1 | F9: Interior
A10: cover | B10: 8.8 | C10: cm | E10: 2 | F10: Edge
E11: 3 | F11: Corner
A15: * Fill Blue Text Cells and Select type of Column for Calculate Punching…

Sheet Output
J4: Do not Remove This Sheet
A5: Punching Shear Check & Design (ACI 318-08 )
A7: Col. ID | B7: Vu | C7: Mux | D7: Muy | E7: Type | F7: Col. Dim. (cm) | H7: Ratio | I7: check
F8: C1 | G8: C2
A9: 1 | B9: 29792.13 | C9: 30719.57 | D9: 597936 | E9: 3 | F9: 35 | G9: 35 | H9: 1.448794653 | I9: Not Ok
A10: 1 | B10: 29792.13 | C10: 30719.57 | D10: 597936 | E10: 2 | F10: 35 | G10: 35 | H10: 0.4550207077 | I10: Ok
A11: 1 | B11: 29792.13 | C11: 30719.57 | D11: 597936 | E11: 2 | F11: 35 | G11: 35 | H11: 0.4550207077 | I11: Ok
A12: 1 | B12: 29792.13 | C12: 30719.57 | D12: 597936 | E12: 2 | F12: 35 | G12: 35 | H12: 0.4550207077 | I12: Ok

Sheet Calculator
A2: Vu | B2: =Input!B6 -> 29792.13 | C2: Kgf | F2: f'c | G2: =Input!B8 -> 210 | H2: Kgf.cm | J2: Type | K2: Location | L2: Ratio
A3: Mux | B3: =Input!C6 -> 30719.57 | C3: Kgf.cm | F3: H | G3: =Input!B9 -> 50 | H3: cm | J3: 1 | K3: Interior | L3: =B23 -> 0.2696966424
A4: Muy | B4: =Input!D6 -> 597936 | C4: Kgf.cm | F4: cover | G4: =Input!B10 -> 8.8 | H4: cm | J4: 2 | K4: Edge | L4: =L23 -> 0.4550207077
A5: C1 | B5: =Input!F6 -> 35 | C5: cm | J5: 3 | K5: Corner | L5: =G23 -> 1.448794653
A6: C2 | B6: =Input!G6 -> 35 | C6: cm
A8: Interior | F8: Corner | K8: Edge
A9: C1 | B9: =$B$5 -> 35 | C9: cm | F9: C1 | G9: =$B$5 -> 35 | H9: cm | K9: C1 | L9: =$B$5 -> 35 | M9: cm
A10: C2 | B10: =$B$6 -> 35 | C10: cm | F10: C2 | G10: =$B$6 -> 35 | H10: cm | K10: C2 | L10: =$B$6 -> 35 | M10: cm
A11: d | B11: =$G$3-$G$4 -> 41.2 | C11: cm | F11: d | G11: =$G$3-$G$4 -> 41.2 | H11: cm | K11: d | L11: =$G$3-$G$4 -> 41.2 | M11: cm
A12: b1 | B12: =B9+B11 -> 76.2 | C12: cm | F12: b1 | G12: =G9+G11/2 -> 55.6 | H12: cm | K12: b1 | L12: =L9+L11 -> 76.2 | M12: cm
A13: b2 | B13: =B10+B11 -> 76.2 | C13: cm | F13: b2 | G13: =G10+G11/2 -> 55.6 | H13: cm | K13: b2 | L13: =L10+L11/2 -> 55.6 | M13: cm
A14: d | B14: =B11 -> 41.2 | C14: cm | F14: d | G14: =G11 -> 41.2 | H14: cm | K14: d | L14: =L11 -> 41.2 | M14: cm
A15: b0 | B15: =B12*4 -> 304.8 | C15: cm | F15: b0 | G15: =G12+G13 -> 111.2 | H15: cm | K15: b0 | L15: =L12+2*L13 -> 187.4 | M15: cm
A16: Ac | B16: =B15*B14 -> 12557.76 | F16: Ac | G16: =G15*G14 -> 4581.44 | K16: Ac | L16: =L15*L14 -> 7720.88
A17: ᵞ v | B17: =1-(1/(1+(SQRT(B12/B13)*(2/3)))) -> 0.4 | F17: ᵞ | G17: =1-(1/(1+(SQRT(G12/G13)*(2/3)))) -> 0.4 | K17: ᵞ | L17: =1-(1/(1+(SQRT(L12/L13)*(2/3)))) -> 0.4383463623
A18: β | B18: =MAX((B9/B10),(B10/B9)) -> 1 | F18: β | G18: =MAX((G9/G10),(G10/G9)) -> 1 | K18: β | L18: =MAX((L9/L10),(L10/L9)) -> 1
A19: α s | B19: 40 | F19: α s | G19: 20 | K19: α s | L19: 30
A20: k | B20: =MIN(2,(1+2/B18),(1+(B19*B14/2*B15))) -> 2 | F20: k | G20: =MIN(2,(1+(2/G18)),(1+(G19*G14/2*G15))) -> 2 | K20: k | L20: =MIN(2,(1+2/L18),(1+(L19*L14/2*L15))) -> 2
A21: vc | B21: =B20*0.53*SQRT(G2)*0.75 -> 11.52064451 | F21: vc | G21: =G20*0.53*SQRT(G2)*0.75 -> 11.52064451 | K21: vc | L21: =L20*0.53*SQRT(G2)*0.75 -> 11.52064451
A22: vu | B22: =($B$2/B16)+($B$3*B17/B27)+($B$4*B17/B27) -> 3.107079143 | F22: vu | G22: =($B$2/G16)+($B$3*G17/H27)+($B$4*G17/H29) -> 16.69104817 | K22: vu | L22: =($B$2/L16)+($B$3*L17/M27)+($B$4*L17/M29) -> 5.242131819
A23: Ratio | B23: =B22/B21 -> 0.2696966424 | F23: Ratio | G23: =G22/G21 -> 1.448794653 | K23: Ratio | L23: =L22/L21 -> 0.4550207077
A27: J\C | B27: =(B12*B14*(B12+3*B13)+B14^3)/3 -> 342278.6133 | F27: Jx\Cy | G27: =(G11*(G12+4*G13)+G11^3*(G12+G13))/(6*G12) -> 23345.84267 | H27: =MIN(G27:G28) -> 12943.82133 | K27: Jx\Cy | L27: =(2*L13^2*L14*(L13+2*L12)+L14^3*(2*L13+L12))/(6*L13) -> 198109.0164 | M27: =MIN(L27:L28) -> 83572.54408
F28: Jx\Cy | G28: =(G12^2*(G12+4*G13)+G14^3*(G12+G13))/(6*(G12+G13)) -> 12943.82133 | K28: Jx\Cy | L28: =(2*L13^2*L14*(L13+2*L12)+L14^3*(2*L13+L12))/(6*(L12+L13)) -> 83572.54408
F29: Jy\Cx | G29: =(G12^2*(G12+4*G13)+G14^3*(G12+G13))/(6*G13) -> 25887.64267 | H29: =MIN(G29:G30) -> 25887.64267 | K29: Jy\Cx | L29: =(L12*L14*(L12+L13*6))/6 -> 214423.752 | M29: =MIN(L29:L30) -> 214423.752
F30: Jy\Cc | G30: =(G13^2*G14*(G13+4*G12)+G14^3*(G12+G13))/(6*(G13+2*G12)) -> 43149.40089 | K30: Jy\Cc | L30: =(L12*L14*(L12+L13*6)+L14^3)/6 -> 226079.5067

Sheet Help
M1: به نام یکتا مهندس هستی
M2: تهیه کننده:
M3: نیما سالاری
N4: By: Nima.Salary@Gmail.com
O5: www.farscivil.ir
